fUST/lending_fUST_20250730
["ID","MTS","AMOUNT","RATE_DAILY","PERIOD"]
[376189019,1753887046526,-460.0,0.00021628,2]
[376189021,1753887046535,-460.0,0.00021628,2]
[376189023,1753887046544,-591.1908632,0.00021628,2]
[376189025,1753887046553,-460.0,0.00021628,2]
[376189027,1753887046562,-460.0,0.00021628,2]
[376189029,1753887046572,-460.0,0.00021628,2]
[376189031,1753887046581,-460.0,0.00021642,2]
[376189033,1753887046591,-460.0,0.00021642,2]
[376189035,1753887046600,-344.63311331,0.00021642,2]
[376189037,1753887046609,-184.54,0.00021642,2]
[376189039,1753887046619,-460.0,0.00021642,2]
[376189041,1753887046628,-550.29,0.00021642,2]
[376189043,1753887046637,-685.88,0.00021642,2]
[376189045,1753887046646,-460.0,0.00021643,2]
[376189047,1753887046655,-329.4073974,0.00021691,2]
[376189049,1753887046665,-505.13672261,0.00021691,2]
[376189051,1753887046675,-1000.0,0.00021724,2]
[376189053,1753887046685,-299.3601861,0.00021728,5]
[376189055,1753887046694,-716.292,0.00021743,2]
[376189057,1753887046703,-500.0,0.00021765,2]
[376189059,1753887046713,-500.0,0.00021765,2]
[376189061,1753887046722,-500.0,0.00021765,2]
[376189063,1753887046731,-500.0,0.00021765,2]
[376189065,1753887046741,-500.87676697,0.00021765,2]
[376189067,1753887046750,-500.0,0.00021765,2]
[376189070,1753887046760,-360.04990284,0.00021765,2]
[376189071,1753887046769,-333.3350158,0.00021765,2]
[376189074,1753887046779,-500.0,0.00021765,2]
[376189076,1753887046789,-500.0,0.00021765,2]
[376189078,1753887046798,-500.0,0.00021765,2]
[376189080,1753887046807,-500.0,0.00021765,2]
[376189082,1753887046817,-500.0,0.00021765,2]
[376189084,1753887046826,-500.0,0.00021765,2]
[376189086,1753887046835,-500.0,0.00021765,2]
[376189088,1753887046844,-498.30217895,0.00021765,2]
[376189090,1753887046854,-500.0,0.00021765,2]
[376189092,1753887046863,-500.0,0.00021765,2]
[376189095,1753887046873,-500.0,0.00021765,2]
[376189097,1753887046885,-500.0,0.00021765,2]
[376189099,1753887046899,-500.0,0.00021765,2]
[376189103,1753887046912,-500.0,0.00021765,2]
[376189106,1753887046924,-207.87892925,0.00021765,2]
[376189109,1753887046937,-500.0,0.00021765,2]
[376189112,1753887046947,-500.0,0.00021765,2]
[376189115,1753887046958,-500.0,0.00021765,2]
[376189117,1753887046971,-500.0,0.00021765,2]
[376189119,1753887046984,-500.0,0.00021765,2]
[376189122,1753887046995,-500.0,0.00021765,2]
[376189124,1753887047007,-500.0,0.00021765,2]
[376189126,1753887047019,-500.0,0.00021765,2]
[376189128,1753887047031,-500.0,0.00021765,2]
[376189131,1753887047042,-500.0,0.00021765,2]
[376189133,1753887047054,-500.0,0.00021765,2]
[376189135,1753887047066,-500.0,0.00021765,2]
[376189138,1753887047079,-500.0,0.00021765,2]
[376189140,1753887047091,-235.42948586,0.00021765,2]
[376189142,1753887047104,-500.0,0.00021765,2]
[376189145,1753887047116,-500.0,0.00021765,2]
[376189147,1753887047128,-500.0,0.00021765,2]
[376189149,1753887047141,-500.0,0.00021765,2]
[376189151,1753887047153,-500.0,0.00021765,2]
[376189154,1753887047164,-500.0,0.00021765,2]
[376189156,1753887047177,-469.02385476,0.00021765,2]
[376189158,1753887047190,-418.42931601,0.00021765,2]
[376189160,1753887047203,-500.0,0.00021765,2]
[376189163,1753887047215,-500.0,0.00021765,2]
[376189165,1753887047228,-500.0,0.00021765,2]
[376189167,1753887047239,-500.0,0.00021765,2]
[376189169,1753887047251,-500.0,0.00021765,2]
[376189172,1753887047263,-500.0,0.00021765,2]
[376189174,1753887047275,-500.0,0.00021765,2]
[376189176,1753887047286,-500.0,0.00021765,2]
[376189178,1753887047298,-500.0,0.00021765,2]
[376189181,1753887047309,-500.0,0.00021765,2]
[376189183,1753887047320,-500.0,0.00021765,2]
[376189185,1753887047332,-500.0,0.00021765,2]
[376189187,1753887047343,-500.0,0.00021765,2]
[376189189,1753887047356,-500.0,0.00021765,2]
[376189192,1753887047368,-500.0,0.00021765,2]
[376189194,1753887047380,-500.0,0.00021765,2]
[376189196,1753887047392,-500.0,0.00021765,2]
[376189199,1753887047405,-500.0,0.00021765,2]
[376189201,1753887047415,-500.0,0.00021765,2]
[376189203,1753887047425,-500.0,0.00021765,2]
[376189205,1753887047435,-500.0,0.00021765,2]
[376189207,1753887047445,-500.0,0.00021765,2]
[376189209,1753887047456,-500.0,0.00021765,2]
[376189211,1753887047467,-500.0,0.00021765,2]
[376189214,1753887047478,-500.0,0.00021765,2]
[376189216,1753887047492,-500.0,0.00021765,2]
[376189218,1753887047505,-500.0,0.00021765,2]
[376189220,1753887047516,-500.0,0.00021765,2]
[376189222,1753887047526,-500.0,0.00021765,2]
[376189225,1753887047536,-650.34657074,0.00021765,2]
[376189227,1753887047547,-500.0,0.00021765,2]
[376189229,1753887047558,-500.0,0.00021765,2]
[376189231,1753887047569,-500.0,0.00021765,2]
[376189233,1753887047580,-500.0,0.00021765,2]
[376189235,1753887047591,-500.0,0.00021765,2]
[376189238,1753887047602,-1141.11,0.00021766,2]
[376189240,1753887047613,-460.0,0.00021766,2]
[376189242,1753887047624,-543.82,0.00021766,2]
[376189244,1753887047634,-460.0,0.00021766,2]
[376189246,1753887047646,-631.71,0.00021766,2]
[376189248,1753887047657,-460.0,0.00021766,2]
[376189251,1753887047668,-460.0,0.00021766,2]
[376189253,1753887047678,-460.0,0.00021766,2]
[376189255,1753887047689,-1053.74,0.00021766,2]
[376189257,1753887047700,-460.0,0.00021766,2]
[376189259,1753887047711,-460.0,0.00021766,2]
[376189261,1753887047721,-460.0,0.00021769,2]
[376189264,1753887047733,-1101.83,0.0002183,2]
[376189266,1753887047743,-460.0,0.0002183,2]
[376189268,1753887047756,-460.0,0.0002183,2]
[376189270,1753887047767,-460.0,0.0002183,2]
[376189272,1753887047777,-460.0,0.0002183,2]
[376189274,1753887047788,-592.06,0.0002183,2]
[376189277,1753887047799,-1058.94,0.0002183,2]
[376189279,1753887047809,-460.0,0.0002183,2]
[376189281,1753887047820,-593.34926123,0.000219,10]
[376189283,1753887047831,-460.0,0.00021902,2]
[376189285,1753887047841,-467.60471983,0.00021902,2]
[376189287,1753887047852,-460.0,0.00021902,2]
[376189290,1753887047863,-460.0,0.00021902,2]
[376189292,1753887047874,-460.0,0.00021902,2]
[376189294,1753887047885,-200.0,0.00021906,15]
[376189296,1753887047896,-200.0,0.00021906,15]
[376189298,1753887047909,-200.0,0.00021906,15]
[376189300,1753887047920,-200.0,0.00021906,15]
[376189302,1753887047930,-200.0,0.00021906,15]
[376189304,1753887047941,-200.0,0.00021906,15]
[376189307,1753887047954,-200.0,0.00021906,15]
[376189309,1753887047964,-200.0,0.00021906,15]
[376189311,1753887047975,-200.0,0.00021906,15]
[376189313,1753887047987,-200.0,0.00021906,15]
[376189315,1753887047999,-200.0,0.00021906,15]
[376189317,1753887048010,-200.0,0.00021906,15]
[376189320,1753887048021,-200.0,0.00021906,15]
[376189322,1753887048031,-200.0,0.00021906,15]
[376189324,1753887048042,-200.0,0.00021906,15]
[376189326,1753887048053,-200.0,0.00021906,15]
[376189328,1753887048064,-200.0,0.00021906,15]
[376189330,1753887048076,-200.0,0.00021906,15]
[376189333,1753887048087,-200.0,0.00021906,15]
[376189335,1753887048101,-200.0,0.00021906,15]
[376189337,1753887048112,-200.0,0.00021906,15]
[376189339,1753887048123,-280.0,0.00021906,15]
[376189341,1753887048134,-460.0,0.00021916,2]
[376189343,1753887048146,-460.0,0.00021916,2]
[376189345,1753887048157,-550.29,0.00021916,2]
[376189348,1753887048168,-685.88,0.00021916,2]
[376189350,1753887048179,-460.0,0.00021917,2]
[376189352,1753887048190,-299.3601861,0.00021934,6]
[376189354,1753887048201,-269.0,0.00021945,4]
[376189356,1753887048212,-179.0,0.00022,2]
[376189358,1753887048223,-13618.82,0.00022,7]
[376189360,1753887048233,-1682.97,0.00022,7]
[376189362,1753887048244,-1039.18,0.00022,2]
[376189365,1753887048256,-181.0,0.00022,2]
[376189367,1753887048269,-260.0,0.0002203,2]
[376189369,1753887048280,-1141.11,0.0002204,2]
[376189371,1753887048291,-460.0,0.0002204,2]
[376189374,1753887048304,-543.82,0.0002204,2]
[376189376,1753887048315,-460.0,0.0002204,2]
[376189393,1753887048469,-631.71,0.0002204,2]
[376189395,1753887048479,-460.0,0.0002204,2]
[376189398,1753887048488,-460.0,0.0002204,2]
[376189399,1753887048498,-426.69,0.0002204,2]
[376189402,1753887048509,-1053.74,0.0002204,2]
[376189404,1753887048518,-460.0,0.0002204,2]
[376189406,1753887048528,-460.0,0.0002204,2]
[376189408,1753887048537,-240.0,0.00022043,2]
[376189410,1753887048547,-1101.83,0.00022104,2]
[376189412,1753887048556,-460.0,0.00022104,2]
[376189413,1753887048566,-460.0,0.00022104,2]
[376189416,1753887048576,-460.0,0.00022104,2]
[376189418,1753887048585,-592.06,0.00022104,2]
[376189420,1753887048595,-1058.94,0.00022104,2]
[376189422,1753887048605,-460.0,0.00022104,2]
[376189424,1753887048614,-299.3601861,0.00022141,6]
[376189426,1753887048624,-460.0,0.00022176,2]
[376189427,1753887048634,-460.0,0.00022176,2]
[376189430,1753887048644,-460.0,0.00022176,2]
[376189432,1753887048654,-460.0,0.00022176,2]
[376189434,1753887048663,-460.0,0.0002219,2]
[376189436,1753887048672,-550.29,0.0002219,2]
[376189438,1753887048681,-685.88,0.0002219,2]
[376189440,1753887048690,-395.18,0.00022191,2]
[376189442,1753887048700,-537.0,0.00022241,2]
[376189443,1753887048710,-1466.62980719,0.00022272,2]
[376189446,1753887048719,-269.0,0.00022283,4]
[376189448,1753887048729,-1141.11,0.00022314,2]
[376189449,1753887048738,-460.0,0.00022314,2]
[376189451,1753887048747,-543.82,0.00022314,2]
[376189453,1753887048757,-460.0,0.00022314,2]
[376189456,1753887048767,-631.71,0.00022314,2]
[376189458,1753887048777,-460.0,0.00022314,2]
[376189459,1753887048786,-460.0,0.00022314,2]
[376189461,1753887048796,-1053.74,0.00022314,2]
[376189463,1753887048806,-460.0,0.00022314,2]
[376189465,1753887048815,-460.0,0.00022314,2]
[376189468,1753887048825,-184.95052764,0.00022337,2]
[376189470,1753887048834,-299.3601861,0.00022348,7]
[376189472,1753887048843,-537.0,0.00022373,2]
[376189474,1753887048852,-1101.83,0.00022378,2]
[376189475,1753887048862,-578.0,0.00022378,2]
[376189477,1753887048871,-460.0,0.00022378,2]
[376189479,1753887048881,-592.06,0.00022378,2]
[376189481,1753887048890,-1058.94,0.00022378,2]
[376189483,1753887048900,-460.0,0.00022378,2]
[376189484,1753887048914,-537.0,0.00022384,2]
[376189485,1753887048923,-500.0,0.00022409,2]
[376189486,1753887048932,-4988.40481139,0.0002241,2]
[376189487,1753887048942,-537.0,0.00022413,2]
[376189488,1753887048952,-460.0,0.0002245,2]
[376189489,1753887048962,-460.0,0.0002245,2]
[376189490,1753887048971,-460.0,0.0002245,2]
[376189491,1753887048982,-460.0,0.0002245,2]
[376189492,1753887048992,-154.317516,0.00022453,15]
[376189493,1753887049002,-460.0,0.00022464,2]
[376189494,1753887049011,-550.29,0.00022464,2]
[376189495,1753887049020,-685.88,0.00022464,2]
[376189496,1753887049029,-164.58341754,0.00022466,2]
[376189497,1753887049038,-299.3601861,0.00022555,7]
[376189498,1753887049047,-537.0,0.00022562,2]
[376189499,1753887049057,-1039.18,0.00022565,2]
[376189500,1753887049066,-360.0,0.00022578,2]
[376189501,1753887049076,-1141.11,0.00022588,2]
[376189502,1753887049085,-195.82,0.00022588,2]
[376189503,1753887049095,-543.82,0.00022588,2]
[376189504,1753887049104,-460.0,0.00022588,2]
[376189505,1753887049114,-631.71,0.00022588,2]
[376189506,1753887049124,-460.0,0.00022588,2]
[376189507,1753887049133,-460.0,0.00022588,2]
[376189508,1753887049143,-1053.74,0.00022588,2]
[376189509,1753887049153,-460.0,0.00022588,2]
[376189510,1753887049162,-460.0,0.00022588,2]
[376189511,1753887049172,-269.0,0.00022622,4]
[376189512,1753887049181,-1101.83,0.00022652,2]
[376189513,1753887049191,-460.0,0.00022652,2]
[376189514,1753887049200,-592.06,0.00022652,2]
[376189515,1753887049210,-1058.94,0.00022652,2]
[376189516,1753887049219,-460.0,0.00022652,2]
[376189517,1753887049230,-537.0,0.00022668,2]
[376189518,1753887049239,-537.0,0.00022701,2]
[376189519,1753887049250,-511.67,0.00022724,2]
[376189520,1753887049260,-505.59,0.00022724,2]
[376189521,1753887049270,-460.0,0.00022724,2]
[376189522,1753887049280,-460.0,0.00022724,2]
[376189523,1753887049290,-460.0,0.00022738,2]
[376189524,1753887049299,-550.29,0.00022738,2]
[376189525,1753887049310,-685.88,0.00022738,2]
[376189526,1753887049320,-537.0,0.00022742,2]
[376189527,1753887049331,-299.3601861,0.00022762,7]
[376189528,1753887049341,-164.58341754,0.00022767,2]
[376189529,1753887049351,-537.0,0.00022793,2]
[376189530,1753887049360,-165.36939,0.00022794,2]
[376189531,1753887049370,-1141.11,0.00022862,2]
[376189532,1753887049379,-543.82,0.00022862,2]
[376189533,1753887049389,-460.0,0.00022862,2]
[376189534,1753887049399,-631.71,0.00022862,2]
[376189535,1753887049408,-460.0,0.00022862,2]
[376189536,1753887049417,-547.38386904,0.00022862,2]
[376189537,1753887049426,-1053.74,0.00022862,2]
[376189538,1753887049436,-460.0,0.00022862,2]
[376189540,1753887049445,-460.0,0.00022862,2]
[376189542,1753887049455,-1101.83,0.00022926,2]
[376189544,1753887049465,-460.0,0.00022926,2]
[376189546,1753887049475,-592.06,0.00022926,2]
[376189548,1753887049484,-1058.94,0.00022926,2]
[376189550,1753887049493,-460.0,0.00022926,2]
[376189552,1753887049505,-269.0,0.0002296,5]
[376189553,1753887049515,-299.3601861,0.00022969,8]
[376189555,1753887049524,-303.52,0.00022998,2]
[376189557,1753887049534,-460.0,0.00022998,2]
[376189559,1753887049543,-500.0,0.00023,2]
[376189561,1753887049553,-1256.6,0.00023,2]
[376189563,1753887049562,-1755.0,0.00023,3]
[376189565,1753887049571,-1755.0,0.00023,3]
[376189567,1753887049580,-1755.0,0.00023,3]
[376189569,1753887049590,-1351.03386136,0.00023,3]
[376189571,1753887049599,-160.0,0.00023,2]
[376189573,1753887049608,-200.0,0.00023,2]
[376189575,1753887049618,-460.0,0.00023012,2]
[376189577,1753887049627,-550.29,0.00023012,2]
[376189579,1753887049636,-685.88,0.00023012,2]
[376189581,1753887049646,-182.0,0.00023014,7]
[376189583,1753887049655,-154.317516,0.0002304,15]
[376189585,1753887049664,-500.0,0.00023057,2]
[376189587,1753887049673,-537.0,0.0002306,2]
[376189589,1753887049682,-500.0,0.00023064,2]
[376189591,1753887049691,-500.0,0.00023064,2]
[376189592,1753887049700,-500.0,0.00023064,2]
[376189594,1753887049709,-500.0,0.00023064,2]
[376189596,1753887049719,-500.0,0.00023064,2]
[376189597,1753887049727,-500.0,0.00023064,2]
[376189599,1753887049736,-500.0,0.00023064,2]
[376189600,1753887049746,-164.58341754,0.00023068,2]
[376189601,1753887049756,-537.0,0.00023079,2]
[376189602,1753887049765,-1402.776555,0.0002308,5]
[376189603,1753887049774,-1000.0,0.000231,5]
[376189604,1753887049783,-5698.24633377,0.00023101,2]
[376189605,1753887049792,-415.40571796,0.00023116,2]
[376189606,1753887049801,-1000.0,0.0002312,5]
[376189607,1753887049811,-500.0,0.00023122,2]
[376189608,1753887049820,-2200.0,0.00023122,2]
[376189609,1753887049829,-460.0,0.00023126,2]
[376189610,1753887049838,-1039.18,0.0002313,2]
[376189611,1753887049847,-1141.11,0.00023136,2]
[376189612,1753887049856,-543.82,0.00023136,2]
[376189613,1753887049866,-541.97,0.00023136,2]
[376189614,1753887049875,-631.71,0.00023136,2]
[376189615,1753887049884,-460.0,0.00023136,2]
[376189616,1753887049894,-1053.74,0.00023136,2]
[376189617,1753887049907,-460.0,0.00023136,2]
[376189619,1753887049917,-460.0,0.00023136,2]
[376189620,1753887049927,-1000.0,0.0002314,5]
[376189621,1753887049936,-537.0,0.00023146,2]
[376189623,1753887049946,-1000.0,0.0002316,5]
[376189625,1753887049955,-500.0,0.0002317,2]
[376189626,1753887049963,-537.0,0.00023171,2]
[376189628,1753887049972,-299.3601861,0.00023176,8]
[376189629,1753887049981,-1000.0,0.0002318,5]
[376189631,1753887049992,-1000.0,0.000232,5]
[376189633,1753887050001,-1101.83,0.000232,2]
[376189635,1753887050011,-460.0,0.000232,2]
[376189637,1753887050020,-644.0,0.000232,2]
[376189639,1753887050031,-13618.82,0.000232,7]
[376189641,1753887050040,-1682.97,0.000232,7]
[376189642,1753887050050,-592.06,0.000232,2]
[376189643,1753887050060,-1058.94,0.000232,2]
[376189644,1753887050069,-151.0,0.000232,7]
[376189645,1753887050078,-460.0,0.000232,2]
[376189646,1753887050087,-325.0,0.00023201,3]
[376189647,1753887050097,-325.0,0.00023201,3]
[376189648,1753887050106,-325.0,0.00023201,3]
[376189649,1753887050117,-325.0,0.00023201,3]
[376189650,1753887050127,-325.0,0.00023201,3]
[376189651,1753887050137,-325.0,0.00023201,3]
[376189652,1753887050146,-325.0,0.00023201,3]
[376189653,1753887050156,-325.0,0.00023201,3]
[376189654,1753887050166,-325.0,0.00023201,3]
[376189655,1753887050176,-325.0,0.00023201,3]
[376189656,1753887050185,-325.0,0.00023201,3]
[376189657,1753887050195,-325.0,0.00023201,3]
[376189658,1753887050204,-325.0,0.00023201,3]
[376189659,1753887050214,-325.0,0.00023201,3]
[376189660,1753887050223,-325.0,0.00023201,3]
[376189661,1753887050233,-325.0,0.00023201,3]
[376189662,1753887050242,-325.0,0.00023201,3]
[376189663,1753887050254,-325.0,0.00023201,3]
[376189664,1753887050263,-325.0,0.00023201,3]
[376189665,1753887050273,-325.0,0.00023201,3]
[376189666,1753887050283,-325.0,0.00023201,3]
[376189667,1753887050293,-316.85729207,0.00023201,3]
[376189668,1753887050303,-1755.0,0.00023201,3]
[376189669,1753887050313,-1755.0,0.00023201,3]
[376189670,1753887050324,-1755.0,0.00023201,3]
[376189671,1753887050334,-1755.0,0.00023201,3]
[376189672,1753887050343,-1162.58663712,0.00023201,3]
[376189673,1753887050352,-501.83333416,0.00023201,8]
[376189674,1753887050362,-500.0,0.00023201,8]
[376189675,1753887050372,-500.0,0.00023201,2]
[376189676,1753887050383,-500.0,0.00023201,2]
[376189677,1753887050392,-500.0,0.00023201,2]
[376189678,1753887050402,-500.0,0.00023201,2]
[376189679,1753887050412,-631.4704539,0.00023201,2]
[376189680,1753887050422,-442.02931773,0.00023201,2]
[376189681,1753887050431,-309.42052241,0.00023201,2]
[376189682,1753887050440,-216.59436569,0.00023201,2]
[376189683,1753887050450,-151.61605598,0.00023201,2]
[376189684,1753887050459,-151.0,0.00023201,2]
[376189685,1753887050468,-202.77079729,0.00023201,2]
[376189686,1753887050478,-210.0,0.00023233,9]
[376189687,1753887050487,-500.0,0.00023258,2]
[376189688,1753887050497,-537.0,0.00023265,2]
[376189690,1753887050511,-460.0,0.00023272,2]
[376189692,1753887050521,-570.82756443,0.00023286,2]
[376189694,1753887050530,-550.29,0.00023286,2]
[376189696,1753887050540,-685.88,0.00023286,2]
[376189698,1753887050549,-154.317516,0.00023292,8]
[376189700,1753887050559,-154.317516,0.00023296,8]
[376189702,1753887050569,-269.0,0.00023298,5]
[376189704,1753887050579,-160.0,0.000233,3]
[376189706,1753887050589,-500.0,0.00023301,2]
[376189708,1753887050598,-500.0,0.00023301,2]
[376189710,1753887050607,-500.0,0.00023301,2]
[376189711,1753887050617,-402.10064843,0.00023301,2]
[376189714,1753887050629,-187.0,0.00023357,2]
[376189715,1753887050639,-187.0,0.00023369,2]
[376189717,1753887050648,-164.58341754,0.0002337,2]
[376189719,1753887050657,-299.3601861,0.00023383,9]
[376189721,1753887050667,-500.0,0.00023401,2]
[376189723,1753887050676,-500.0,0.00023401,2]
[376189725,1753887050685,-288.71521205,0.00023401,2]
[376189727,1753887050694,-1141.11,0.0002341,2]
[376189729,1753887050703,-543.82,0.0002341,2]
[376189731,1753887050713,-631.71,0.0002341,2]
[376189733,1753887050722,-460.0,0.0002341,2]
[376189735,1753887050731,-1053.74,0.0002341,2]
[376189737,1753887050740,-460.0,0.0002341,2]
[376189739,1753887050749,-356.46,0.0002341,2]
[376189741,1753887050762,-187.0,0.0002341,2]
[376189743,1753887050771,-187.0,0.0002342,2]
[376189745,1753887050780,-187.0,0.00023433,2]
[376189747,1753887050790,-587.0,0.00023462,2]
[376189748,1753887050799,-1101.83,0.00023474,2]
[376189749,1753887050809,-460.0,0.00023474,2]
[376189750,1753887050819,-592.06,0.00023474,2]
[376189751,1753887050829,-1058.94,0.00023474,2]
[376189752,1753887050839,-460.0,0.00023474,2]
[376189753,1753887050848,-2047.0,0.000235,2]
[376189754,1753887050858,-428.3237,0.000235,2]
[376189755,1753887050867,-428.3237,0.000235,2]
[376189756,1753887050877,-500.0,0.00023501,2]
[376189757,1753887050886,-341.0217315,0.00023501,2]
[376189758,1753887050896,-623.10857695,0.00023516,16]
[376189759,1753887050905,-187.0,0.0002353,2]
[376189760,1753887050919,-460.0,0.00023546,2]
[376189761,1753887050928,-550.29,0.0002356,2]
[376189762,1753887050936,-685.88,0.0002356,2]
[376189763,1753887050945,-302.76,0.00023561,2]
[376189764,1753887050957,-302.76,0.00023561,2]
[376189765,1753887050966,-302.76,0.00023561,2]
[376189766,1753887050975,-302.76,0.00023561,2]
[376189767,1753887050984,-302.76,0.00023561,2]
[376189768,1753887050994,-302.76,0.00023561,2]
[376189769,1753887051007,-302.76,0.00023561,2]
[376189770,1753887051016,-302.76,0.00023561,2]
[376189771,1753887051026,-302.76,0.00023561,2]
[376189772,1753887051036,-302.76,0.00023561,2]
[376189773,1753887051045,-302.76,0.00023561,2]
[376189774,1753887051054,-151.0,0.00023561,7]
[376189775,1753887051063,-151.0,0.00023561,7]
[376189776,1753887051072,-299.3601861,0.0002359,9]
[376189777,1753887051081,-630.03104499,0.00023601,2]
[376189778,1753887051089,-1000.0,0.00023605,2]
[376189779,1753887051098,-1000.0,0.00023612,2]
[376189780,1753887051108,-1000.0,0.00023612,2]
[376189781,1753887051118,-1011.05197968,0.00023612,2]
[376189782,1753887051128,-1000.0,0.00023612,2]
[376189783,1753887051138,-1017.79606695,0.00023612,2]
[376189784,1753887051148,-153.0,0.0002362,2]
[376189785,1753887051158,-153.0,0.0002362,2]
[376189786,1753887051168,-153.0,0.0002362,2]
[376189787,1753887051178,-153.0,0.0002362,2]
[376189788,1753887051188,-153.0,0.0002362,2]
[376189789,1753887051199,-154.317516,0.00023626,15]
[376189790,1753887051210,-269.0,0.00023636,5]
[376189791,1753887051221,-164.58341754,0.00023671,2]
[376189792,1753887051232,-500.0,0.00023673,2]
[376189793,1753887051242,-500.0,0.00023673,2]
[376189794,1753887051256,-500.0,0.00023673,2]
[376189795,1753887051266,-501.01581911,0.00023673,2]
[376189796,1753887051277,-500.0,0.00023673,2]
[376189797,1753887051287,-500.0,0.00023673,2]
[376189807,1753887051403,-501.94752699,0.00023673,2]
[376189809,1753887051414,-157.77,0.00023673,2]
[376189811,1753887051424,-500.0,0.00023673,2]
[376189813,1753887051433,-537.0,0.00023674,2]
[376189815,1753887051444,-560.0,0.00023674,2]
[376189817,1753887051454,-1141.11,0.00023684,2]
[376189819,1753887051466,-543.82,0.00023684,2]
[376189821,1753887051475,-631.71,0.00023684,2]
[376189823,1753887051484,-460.0,0.00023684,2]
[376189825,1753887051493,-1053.74,0.00023684,2]
[376189827,1753887051506,-460.0,0.00023684,2]
[376189829,1753887051516,-1039.18,0.00023694,2]
[376189831,1753887051525,-460.0,0.00023698,2]
[376189833,1753887051535,-500.0,0.00023699,2]
[376189835,1753887051545,-500.0,0.00023699,2]
[376189837,1753887051555,-289.09,0.00023699,2]
[376189839,1753887051564,-63434.76860957,0.000237,7]
[376189841,1753887051574,-151.0,0.000237,7]
[376189843,1753887051584,-151.0,0.000237,7]
[376189845,1753887051593,-151.0,0.000237,7]
[376189847,1753887051603,-154.317516,0.00023722,2]
[376189849,1753887051612,-1101.83,0.00023748,2]
[376189851,1753887051621,-460.0,0.00023748,2]
[376189853,1753887051631,-592.06,0.00023748,2]
[376189855,1753887051640,-1058.94,0.00023748,2]
[376189857,1753887051649,-537.0,0.00023776,2]
[376189859,1753887051659,-299.3601861,0.00023797,9]
[376189861,1753887051668,-2391.75,0.00023803,7]
[376189863,1753887051677,-537.0,0.00023814,2]
[376189865,1753887051686,-302.76,0.0002382,2]
[376189867,1753887051694,-460.0,0.0002382,2]
[376189868,1753887051702,-154.317516,0.00023832,10]
[376189870,1753887051711,-550.29,0.00023834,2]
[376189872,1753887051720,-685.88,0.00023834,2]
[376189874,1753887051730,-4153.15,0.000239,7]
[376189876,1753887051740,-2391.75,0.00023903,7]
[376189879,1753887051753,-1141.11,0.00023958,2]
[376189881,1753887051762,-543.82,0.00023958,2]
[376189883,1753887051771,-631.71,0.00023958,2]
[376189885,1753887051781,-460.0,0.00023958,2]
[376189887,1753887051790,-1053.74,0.00023958,2]
[376189889,1753887051799,-460.0,0.00023958,2]
[376189890,1753887051808,-269.0,0.00023974,5]
[376189893,1753887051818,-160.0,0.00024,7]